bitfinex/quotes_SOLUSD_20251119
["timestamp","ask_amount","ask_price","bid_price","bid_amount"]
[1763576051213,18.12096,132.53,132.49,0.72]
[1763576051416,18.12096,132.54,132.5,9.78882769]
[1763576051724,18.12096,132.54,132.5,20.92641618]
[1763576051922,18.12096,132.54,132.5,21.64641618]
[1763576052257,0.69,132.55,132.52,11.13758849]
[1763576052421,18.68147851,132.56,132.52,11.13758849]
[1763576052617,19.37147851,132.56,132.52,11.85758849]
[1763576052924,8.23389002,132.56,132.52,11.85758849]
[1763576053129,0.69,132.56,132.52,11.85758849]
[1763576053445,11.82758849,132.55,132.51,12.95758849]
[1763576053943,7.54401477,132.56,132.52,11.13758849]
[1763576054121,7.54334817,132.57,132.53,11.13758849]
[1763576054319,7.54334817,132.57,132.54,11.13758849]
[1763576054644,0.69,132.56,132.52,21.64641618]
[1763576054830,0.69,132.56,132.52,11.85758849]
[1763576055143,7.54375377,132.56,132.52,11.85758849]
[1763576055532,7.54375377,132.56,132.51,9.36658088]
[1763576055533,11.13758849,132.55,132.51,12.95758849]
[1763576055729,11.13758849,132.53,132.5,1.82]
[1763576056071,7.54375377,132.56,132.51,11.85758849]
[1763576056255,18.12096,132.56,132.51,0.72]
[1763576056556,11.13758849,132.55,132.51,11.13758849]
[1763576056735,11.13758849,132.55,132.5,13.67758849]
[1763576057128,18.68191138,132.55,132.51,0.72]
[1763576057359,18.68191138,132.55,132.51,11.85758849]
[1763576057837,7.54432289,132.55,132.51,11.85758849]
[1763576058041,8.23432289,132.55,132.51,11.85758849]
[1763576058237,11.13758849,132.53,132.5,1.82]
[1763576058426,11.13758849,132.54,132.51,0.72]
[1763576058633,26.40513013,132.55,132.51,0.72]
[1763576058847,19.94096,132.56,132.51,11.85758849]
[1763576059049,0.69,132.55,132.5,12.95758849]
[1763576059269,27.48506326,132.56,132.51,11.13758849]
[1763576059565,11.13758849,132.55,132.51,0.72]
[1763576059727,11.82758849,132.55,132.51,2.54]
[1763576059928,55.66203617,132.56,132.51,13.67758849]
[1763576060151,11.82758849,132.55,132.51,12.95758849]
[1763576060358,11.13758849,132.53,132.49,9.78882769]
[1763576060546,11.13758849,132.52,132.48,1.82]
[1763576060748,11.82758849,132.54,132.49,11.13758849]
[1763576061054,1.82,132.55,132.5,11.13758849]
[1763576061233,11.13758849,132.55,132.51,1.82]
[1763576061431,0.69,132.59,132.51,2.52]
[1763576061635,11.13758849,132.57,132.52,11.13758849]
[1763576061925,1.82,132.58,132.53,11.13758849]
[1763576062156,1.82,132.58,132.54,11.13758849]
[1763576062333,0.69,132.59,132.55,11.13758849]
[1763576062536,29.94854849,132.59,132.55,11.13758849]
[1763576062747,28.21517344,132.6,132.54,1.82]
[1763576062748,37.53276193,132.6,132.54,1.82]
[1763576063051,11.13758849,132.56,132.52,11.13758849]
[1763576063356,11.13758849,132.55,132.51,12.95758849]
[1763576063649,18.68188824,132.56,132.52,11.83758849]
[1763576063853,7.54429975,132.56,132.52,11.83758849]
[1763576064050,7.54429975,132.56,132.53,0.7]
[1763576064438,7.54429975,132.56,132.53,11.83758849]
[1763576064835,37.70739064,132.6,132.53,11.83758849]
[1763576064836,0.65,132.63,132.55,20.92641618]
[1763576065037,11.78758849,132.63,132.55,9.78882769]
[1763576065240,19.3274348,132.63,132.56,0.72]
[1763576065552,11.13758849,132.62,132.57,12.95758849]
[1763576065854,29.90854849,132.62,132.57,2.54]
[1763576066057,11.13758849,132.61,132.58,0.72]
[1763576066254,0.65,132.61,132.57,1.82]
[1763576066456,0.65,132.6,132.57,1.82]
[1763576066757,11.13758849,132.59,132.55,11.13758849]
[1763576066951,11.13758849,132.56,132.51,11.85758849]
[1763576067272,11.13758849,132.53,132.48,11.85758849]
[1763576067449,11.13758849,132.53,132.49,11.60882769]
[1763576067648,11.78758849,132.53,132.49,12.32882769]
[1763576068057,11.13758849,132.52,132.49,1.82]
[1763576068257,11.13758849,132.53,132.49,2.54]
[1763576068456,11.13758849,132.53,132.49,1.82]
[1763576068647,11.78758849,132.53,132.49,1.82]
[1763576068829,11.13758849,132.53,132.49,1.82]
[1763576069027,11.78758849,132.53,132.49,1.82]
[1763576069262,18.68325946,132.53,132.49,2.54]
[1763576069450,38.19691297,132.53,132.49,2.54]
[1763576069973,11.78758849,132.52,132.49,1.82]
[1763576070534,11.13758849,132.53,132.49,13.67758849]
[1763576071038,11.78758849,132.53,132.49,2.54]
[1763576071241,7.54660025,132.51,132.49,2.54]
[1763576071755,7.54660025,132.51,132.49,1.82]
[1763576072138,7.5448921,132.54,132.49,2.54]
[1763576072329,28.13545966,132.55,132.5,11.13758849]
[1763576072534,36.80304815,132.55,132.5,11.85758849]
[1763576072863,33.43856527,132.55,132.5,7.84310561]
[1763576073235,7.12310561,132.54,132.5,7.84310561]
[1763576073676,26.31545966,132.55,132.49,1.82]
[1763576073677,7.12310561,132.52,132.49,1.82]
[1763576073969,7.77310561,132.53,132.49,1.82]
[1763576074873,0.65,132.54,132.49,9.66310561]
[1763576075173,25.66545966,132.55,132.51,7.12310561]
[1763576075331,25.24406561,132.55,132.51,7.12310561]
[1763576075530,25.24406561,132.55,132.51,7.84310561]
[1763576075729,7.12310561,132.54,132.52,1.82]
[1763576075974,7.12310561,132.53,132.52,1.82]
[1763576076267,7.12310561,132.53,132.48,10.50882769]
[1763576076461,7.12310561,132.53,132.49,1.82]
[1763576076462,7.12310561,132.52,132.49,1.82]
[1763576077167,7.12310561,132.53,132.49,2.54]
[1763576077371,14.66913639,132.52,132.49,1.82]
[1763576077550,27.06110774,132.52,132.49,1.82]
[1763576077748,7.12310561,132.51,132.49,1.82]
[1763576077945,7.12310561,132.51,132.47,9.86310561]
[1763576078137,15.31913639,132.52,132.47,17.4119377]
[1763576078336,15.31913639,132.52,132.47,9.86310561]
[1763576078541,8.19603078,132.52,132.47,9.86310561]
[1763576078879,27.06110774,132.52,132.47,9.86310561]
[1763576079040,7.12310561,132.51,132.47,9.86310561]
[1763576079461,34.18421335,132.52,132.48,0.72]
[1763576079668,15.31913639,132.52,132.48,0.72]
[1763576079967,34.18421335,132.52,132.48,0.72]
[1763576081474,34.18421335,132.52,132.47,16.69183588]
[1763576081673,7.54603078,132.52,132.49,7.84310561]
[1763576081842,7.54563814,132.53,132.49,0.72]
[1763576082041,7.54563814,132.53,132.49,7.84310561]
[1763576082243,7.54563814,132.53,132.5,1.82]
[1763576082674,33.53239726,132.53,132.5,1.82]
[1763576082970,26.40929165,132.53,132.5,1.82]
[1763576083158,26.40929165,132.53,132.5,2.54]
[1763576083356,7.54499598,132.54,132.51,7.84310561]
[1763576083674,26.4020505,132.57,132.53,7.12310561]
[1763576083978,7.54280637,132.58,132.55,7.12310561]
[1763576084356,0.65,132.6,132.56,2.54]
[1763576084548,0.65,132.6,132.56,8.94310561]
[1763576084870,27.04518334,132.6,132.56,8.94310561]
[1763576085073,27.04518334,132.6,132.56,9.66310561]
[1763576085249,27.04518334,132.6,132.56,1.82]
[1763576085551,15.31539492,132.59,132.56,1.82]
[1763576085751,8.19228931,132.59,132.56,1.82]
[1763576086162,8.19228931,132.59,132.55,8.94310561]
[1763576086359,8.19228931,132.59,132.55,9.66310561]
[1763576086765,27.04740658,132.59,132.55,9.66310561]
[1763576086979,7.77310561,132.58,132.55,1.82]
[1763576088077,33.52051219,132.59,132.55,1.82]
[1763576088281,27.04740658,132.59,132.54,8.94310561]
[1763576088482,7.12310561,132.58,132.54,9.66310561]
[1763576088956,7.54318473,132.57,132.54,9.66310561]
[1763576089283,14.66458373,132.6,132.55,17.6319333]
[1763576089462,7.77310561,132.59,132.54,1.82]
[1763576089653,7.77310561,132.59,132.54,2.49]
[1763576089654,7.12310561,132.58,132.54,2.49]
[1763576090164,7.77310561,132.59,132.54,9.61310561]
[1763576090367,7.77310561,132.59,132.55,0.67]
[1763576090566,7.12310561,132.59,132.54,9.61310561]
[1763576090776,7.12310561,132.59,132.54,1.82]
[1763576090991,14.66685938,132.56,132.52,9.78882769]
[1763576091162,33.5262438,132.56,132.53,1.82]
[1763576091480,34.1962438,132.56,132.53,1.82]
[1763576091871,33.5262438,132.56,132.53,1.82]
[1763576092175,33.5262438,132.56,132.53,2.49]
[1763576092354,14.66685938,132.56,132.53,2.49]
[1763576092770,14.66685938,132.56,132.51,7.79310561]
[1763576092984,7.12310561,132.54,132.49,7.79310561]
[1763576093195,7.12310561,132.54,132.51,0.67]
[1763576093490,26.40313819,132.56,132.51,16.9119333]
[1763576093661,33.5262438,132.56,132.52,0.67]
[1763576093856,7.12310561,132.55,132.51,0.67]
[1763576094478,34.1962438,132.56,132.51,7.79310561]
[1763576094678,7.12310561,132.55,132.51,0.67]
[1763576095568,34.1962438,132.56,132.51,15.33969708]
[1763576095775,33.5262438,132.56,132.51,15.33969708]
[1763576096081,19.94096,132.58,132.52,9.61310561]
[1763576096082,14.66650011,132.57,132.52,9.61310561]
[1763576096265,14.66650011,132.57,132.53,0.67]
[1763576096472,33.52446194,132.57,132.53,0.67]
[1763576097086,34.19446194,132.57,132.53,0.67]
[1763576097662,7.12310561,132.56,132.53,0.67]
[1763576097861,7.12310561,132.55,132.49,26.33839056]
[1763576098058,0.67,132.55,132.51,1.82]
[1763576098263,18.12096,132.56,132.52,7.79310561]
[1763576098674,7.54432289,132.55,132.53,0.67]
[1763576099389,7.54432289,132.55,132.54,1.82]
[1763576101492,7.54329347,132.57,132.54,2.49]
[1763576101681,18.12096,132.58,132.55,0.67]
[1763576101987,25.66381782,132.58,132.55,0.67]
[1763576102289,28.6549878,132.58,132.54,4.81116998]
[1763576102492,0.67,132.62,132.57,2.99116998]
[1763576102659,11.20189983,132.62,132.57,4.81116998]
[1763576102861,11.20189983,132.62,132.57,1.82]
[1763576102862,2.99116998,132.6,132.57,1.82]
[1763576103165,2.99116998,132.59,132.57,1.82]
[1763576103474,0.67,132.61,132.57,1.82]
[1763576103666,27.48168985,132.62,132.57,1.82]
[1763576103866,2.99116998,132.61,132.58,0.67]
[1763576104098,3.66116998,132.61,132.57,2.49]
[1763576104262,2.99116998,132.61,132.58,0.67]
[1763576104693,10.53256985,132.61,132.58,0.67]
[1763576105099,2.99116998,132.61,132.58,0.67]
[1763576105388,10.53057278,132.64,132.6,2.99116998]
[1763576105591,29.37858243,132.64,132.6,1.82]
[1763576105797,2.99116998,132.61,132.58,62.1]
[1763576105965,2.99116998,132.62,132.59,1.82]
[1763576106165,0.67,132.63,132.59,1.82]
[1763576106166,2.99116998,132.61,132.59,1.82]
[1763576106362,2.99116998,132.6,132.56,1.82]
[1763576106566,2.99116998,132.59,132.56,2.49]
[1763576106873,2.99116998,132.57,132.53,9.78882769]
[1763576107189,2.99116998,132.57,132.54,0.67]
[1763576107495,10.53338436,132.59,132.55,2.99116998]
[1763576107795,2.99116998,132.58,132.54,0.67]
[1763576108273,2.99116998,132.58,132.54,3.66116998]
[1763576108798,10.53418206,132.58,132.55,0.67]
[1763576109310,2.99116998,132.56,132.52,1.82]
[1763576109602,2.99116998,132.56,132.52,2.49]
[1763576109833,2.99116998,132.56,132.52,1.82]
[1763576110108,2.99116998,132.55,132.52,0.67]
[1763576110268,0.67,132.56,132.51,2.49]
[1763576110576,2.99116998,132.53,132.51,2.49]
[1763576110782,7.54509051,132.54,132.51,1.82]
[1763576110977,2.49,132.56,132.51,2.49]
[1763576111179,7.12432758,132.54,132.51,1.82]
[1763576111481,0.67,132.55,132.51,1.82]
[1763576111482,7.12432758,132.53,132.51,2.49]
[1763576111787,7.12432758,132.54,132.51,2.49]
[1763576111964,7.12432758,132.53,132.48,10.45882769]
[1763576112169,0.67,132.54,132.49,1.82]
[1763576112393,7.12432758,132.51,132.49,1.82]
[1763576112706,14.67097697,132.51,132.47,14.87289792]
[1763576112884,7.12432758,132.5,132.47,2.69]
[1763576113069,7.12432758,132.5,132.48,0.67]
[1763576113803,7.12432758,132.49,132.47,2.02]
[1763576114117,7.12432758,132.49,132.47,0.2]
[1763576114118,7.12432758,132.48,132.47,0.2]
[1763576114416,7.12432758,132.5,132.47,0.87]
[1763576114698,25.24528758,132.53,132.48,0.67]
[1763576114868,25.24528758,132.53,132.47,2.02]
[1763576114869,7.12432758,132.51,132.47,2.02]
[1763576115065,7.12432758,132.51,132.47,9.81432758]
[1763576115268,7.12432758,132.52,132.48,7.79432758]
[1763576115491,7.5448921,132.54,132.51,7.12432758]
[1763576115687,14.66921968,132.54,132.5,7.79432758]
[1763576115896,25.66550342,132.55,132.5,0.67]
[1763576116074,25.66550342,132.55,132.52,7.12432758]
[1763576116399,7.12432758,132.53,132.48,10.45882769]
[1763576116587,25.66550342,132.55,132.51,7.12432758]
[1763576116782,7.54454342,132.55,132.52,7.79432758]
[1763576116981,7.12432758,132.55,132.52,0.67]
[1763576117290,26.40149593,132.57,132.52,7.79432758]
[1763576117497,26.40149593,132.57,132.54,7.12432758]
[1763576117677,33.52582351,132.57,132.53,0.67]
[1763576117999,18.12096,132.58,132.53,0.67]
[1763576118000,7.54265986,132.58,132.55,7.12432758]
[1763576118378,7.54265986,132.58,132.55,7.79432758]
[1763576118701,25.97736297,132.61,132.57,7.12432758]
[1763576118875,25.97736297,132.61,132.58,7.79432758]
[1763576118876,18.85303539,132.61,132.58,7.79432758]
[1763576119082,1.82,132.63,132.58,7.79432758]
[1763576119309,7.12432758,132.61,132.56,1.82]
[1763576119477,7.12432758,132.61,132.57,7.79432758]
[1763576119672,7.12432758,132.59,132.56,1.82]
[1763576119990,7.12432758,132.6,132.56,1.82]
[1763576120188,7.12432758,132.59,132.56,2.54]
[1763576120407,7.12432758,132.6,132.56,9.66432758]
[1763576120773,45.17215287,132.62,132.56,8.94432758]
[1763576120774,7.54204691,132.59,132.56,8.94432758]
[1763576120976,25.97517963,132.62,132.58,7.12432758]
[1763576121533,7.54106916,132.61,132.59,0.72]
[1763576121812,0.66,132.64,132.6,7.12432758]
[1763576121813,18.84841259,132.64,132.6,7.12432758]
[1763576122020,18.84841259,132.64,132.59,2.54]
[1763576122021,25.97274017,132.64,132.59,9.66432758]
[1763576122227,25.24528758,132.6,132.52,7.12432758]
[1763576122377,7.12432758,132.59,132.55,7.12432758]
[1763576122725,18.12096,132.62,132.58,7.12432758]
[1763576123016,32.78586724,132.62,132.59,1.82]
[1763576123311,18.12096,132.62,132.59,8.94432758]
[1763576123510,15.32420646,132.63,132.59,8.94432758]
[1763576124400,7.12432758,132.61,132.57,16.91315527]
[1763576124623,7.12432758,132.58,132.54,9.78882769]
[1763576124807,25.24528758,132.6,132.56,7.12432758]
[1763576125114,32.78690052,132.6,132.56,7.12432758]
[1763576125320,25.66257294,132.6,132.56,1.82]
[1763576125609,7.12432758,132.57,132.53,9.78882769]
[1763576125830,0.68,132.59,132.53,18.73315527]
[1763576126009,7.12432758,132.56,132.53,1.82]
[1763576126182,7.12432758,132.54,132.49,8.25761799]
[1763576126382,7.12432758,132.54,132.5,7.12432758]
[1763576126601,7.12432758,132.53,132.47,0.91]
[1763576126814,7.54653862,132.52,132.47,15.58317462]
[1763576126989,25.24528758,132.53,132.49,7.12432758]
[1763576127187,7.12432758,132.52,132.48,1.82]
[1763576127378,7.12432758,132.52,132.48,2.53]
[1763576127580,7.12432758,132.52,132.48,8.94432758]
[1763576127811,7.80432758,132.52,132.48,9.65432758]
[1763576128122,7.12432758,132.51,132.48,1.82]
[1763576128296,7.80432758,132.52,132.48,2.53]
[1763576128496,7.80432758,132.52,132.47,0.2]
[1763576128497,7.12432758,132.49,132.47,0.2]
[1763576128695,7.12432758,132.48,132.47,0.2]
[1763576128894,14.67263675,132.48,132.47,0.2]
[1763576129288,18.12096,132.46,132.45,0.2]
[1763576129594,25.24528758,132.46,132.45,0.2]
[1763576129796,25.92528758,132.46,132.45,0.2]
[1763576130000,25.92528758,132.46,132.45,1e-08]
[1763576130900,43.26356416,132.46,132.45,1e-08]
[1763576131222,43.26356416,132.46,132.38,1.82]
[1763576131223,9.78882769,132.45,132.38,1.82]
[1763576131513,7.12432758,132.4,132.36,7.83432758]
[1763576131687,7.12432758,132.39,132.36,0.71]
[1763576133017,14.67833875,132.38,132.35,2.02]
[1763576133223,7.12432758,132.39,132.36,0.71]
[1763576133514,7.12432758,132.39,132.35,9.14432758]
[1763576133693,7.12432758,132.37,132.35,2.73]
[1763576134004,26.43558856,132.4,132.35,2.73]
[1763576134005,7.12432758,132.38,132.35,2.73]
[1763576134211,7.12432758,132.37,132.35,0.2]
[1763576134413,26.43558856,132.4,132.35,0.2]
[1763576134414,7.12432758,132.36,132.35,0.2]
[1763576134783,11.19459346,132.36,132.35,0.2]
[1763576135013,18.74974607,132.36,132.35,0.2]
[1763576135379,7.55515261,132.36,132.35,0.2]
[1763576135583,18.74974607,132.36,132.35,0.2]
[1763576136913,19.42974607,132.36,132.35,0.2]
[1763576137590,37.55070607,132.36,132.35,0.2]
[1763576138391,18.12096,132.34,132.33,0.2]
[1763576138628,31.13555346,132.34,132.33,0.2]
[1763576138809,31.81555346,132.34,132.33,0.2]
[1763576139116,39.37184785,132.34,132.33,0.2]
[1763576139420,18.12096,132.31,132.28,11.90459346]
[1763576139608,18.12096,132.31,132.22,7.56304934]
[1763576139609,29.31555346,132.31,132.27,11.19459346]
[1763576139917,29.31555346,132.31,132.28,0.71]
[1763576140110,29.31555346,132.31,132.26,11.19459346]
[1763576140431,11.19459346,132.3,132.26,11.90459346]
[1763576140596,11.19459346,132.3,132.27,0.71]
[1763576141119,18.75320972,132.3,132.27,0.71]
[1763576143201,18.75320972,132.3,132.26,11.19459346]
[1763576143406,18.75320972,132.3,132.25,13.01459346]
[1763576143716,18.75320972,132.3,132.26,11.19459346]
[1763576144019,11.19459346,132.29,132.26,0.71]
[1763576144193,11.19459346,132.29,132.25,1.82]
[1763576144388,11.19459346,132.27,132.23,13.72459346]
[1763576144605,11.19459346,132.27,132.24,0.71]
[1763576144810,7.56086496,132.26,132.24,0.71]
[1763576145015,11.19459346,132.28,132.24,11.90459346]
[1763576145313,11.19459346,132.27,132.24,0.71]
[1763576146623,26.45905779,132.28,132.21,0.2]
[1763576146624,11.19459346,132.25,132.21,0.2]
[1763576146915,7.56036696,132.27,132.24,11.19459346]
[1763576147120,18.12096,132.26,132.25,11.19459346]
[1763576147620,7.55989426,132.28,132.25,11.90459346]
[1763576147795,25.68085426,132.28,132.25,11.90459346]
[1763576147999,18.12096,132.28,132.26,11.90459346]
[1763576148198,18.12096,132.28,132.24,0.71]
[1763576148441,18.12096,132.28,132.26,11.19459346]
[1763576148720,25.68071995,132.28,132.26,11.19459346]
[1763576149023,13.01459346,132.32,132.27,11.90459346]
[1763576149233,18.12096,132.3,132.27,0.71]
[1763576149402,18.12096,132.3,132.26,1.82]
[1763576149403,18.12096,132.3,132.29,11.19459346]
[1763576149792,18.12096,132.3,132.29,11.91459346]
[1763576149999,7.55344059,132.39,132.3,9.78882769]
[1763576150233,7.55344059,132.39,132.36,11.19459346]
[1763576150421,8.25344059,132.39,132.36,11.19459346]
[1763576150744,11.89459346,132.38,132.34,11.19459346]
[1763576151030,11.89459346,132.38,132.3,0.72]
[1763576151031,11.19459346,132.35,132.3,0.72]
[1763576151224,11.19459346,132.35,132.31,11.19459346]
[1763576151429,18.12096,132.34,132.3,0.72]
[1763576151606,18.12096,132.34,132.32,11.19459346]
[1763576151927,11.19459346,132.35,132.31,11.19459346]
[1763576152230,11.19459346,132.36,132.32,11.19459346]
[1763576152398,25.67554185,132.37,132.34,11.19459346]
[1763576152602,25.67554185,132.37,132.33,0.72]
[1763576152930,25.67554185,132.37,132.33,11.91459346]
[1763576153108,25.67554185,132.37,132.34,11.19459346]
[1763576153303,25.67554185,132.37,132.34,11.91459346]
[1763576153505,7.55458185,132.37,132.35,11.91459346]
[1763576153807,7.55458185,132.37,132.35,13.73459346]
[1763576154831,7.55458185,132.37,132.35,1.82]
[1763576155743,18.12096,132.36,132.33,13.01459346]
[1763576156139,18.12096,132.36,132.33,13.73459346]
[1763576156644,18.12096,132.36,132.33,11.91459346]
[1763576156825,7.55572346,132.35,132.33,11.91459346]
[1763576157005,7.55572346,132.35,132.33,11.19459346]
[1763576157641,7.55572346,132.35,132.33,11.91459346]
[1763576157824,18.12096,132.36,132.34,11.91459346]
[1763576157825,25.67627517,132.36,132.34,11.91459346]
[1763576158022,18.12096,132.36,132.35,11.19459346]
[1763576158225,25.67573332,132.37,132.35,13.73459346]
[1763576158420,25.67480482,132.39,132.36,11.91459346]
[1763576158721,26.37480482,132.39,132.36,11.19459346]
[1763576158917,44.5584063,132.39,132.35,13.73459346]
[1763576159139,11.89459346,132.38,132.35,1.82]
[1763576159332,11.89459346,132.38,132.34,11.19459346]
[1763576159539,11.89459346,132.38,132.34,13.73459346]
[1763576159934,0.7,132.38,132.34,13.73459346]
[1763576160131,0.7,132.37,132.34,1.82]
[1763576160337,0.7,132.37,132.31,0.72]
[1763576160338,18.12096,132.36,132.33,1.82]
[1763576160547,0.7,132.41,132.35,11.19459346]
[1763576160854,18.12096,132.38,132.36,1.82]
[1763576161031,25.67508687,132.38,132.35,11.19459346]
[1763576161233,36.86968033,132.38,132.34,11.19459346]
[1763576161427,45.26011481,132.38,132.34,11.19459346]
[1763576161628,56.45470827,132.38,132.33,1.82]
[1763576161939,58.27470827,132.38,132.34,11.19459346]
[1763576162256,45.26011481,132.38,132.34,11.91459346]
[1763576163425,55.75470827,132.38,132.33,1.82]
[1763576163648,11.19459346,132.36,132.32,13.01459346]
[1763576163834,11.19459346,132.36,132.32,11.19459346]
[1763576164041,0.7,132.35,132.32,11.19459346]
[1763576164347,13.01459346,132.36,132.32,11.19459346]
[1763576164546,13.01459346,132.36,132.31,13.73459346]
[1763576164547,29.31555346,132.35,132.31,13.73459346]
[1763576164745,30.01555346,132.35,132.31,11.19459346]
[1763576164950,2.52,132.34,132.26,9.78882769]
[1763576165148,37.64762043,132.31,132.27,11.19459346]
[1763576165469,38.34762043,132.31,132.27,11.19459346]
[1763576165673,37.64762043,132.31,132.27,11.19459346]
[1763576165875,11.19459346,132.29,132.25,11.19459346]
[1763576166360,13.71459346,132.3,132.25,11.91459346]
[1763576166756,11.19459346,132.29,132.25,11.91459346]
[1763576167058,26.45702622,132.29,132.25,11.91459346]
[1763576167262,26.45702622,132.29,132.26,11.19459346]
[1763576167430,7.55915035,132.29,132.26,11.19459346]
[1763576168029,27.15702622,132.29,132.26,11.19459346]
[1763576168329,26.45702622,132.29,132.26,11.19459346]
[1763576168538,9.37881605,132.3,132.26,11.91459346]
[1763576168743,21.27340951,132.3,132.26,11.91459346]
[1763576168943,13.71459346,132.3,132.26,11.19459346]
[1763576169155,40.16969087,132.3,132.24,1.82]
[1763576169354,39.46969087,132.3,132.26,11.19459346]
[1763576169733,40.16969087,132.3,132.26,11.19459346]
[1763576171056,39.46969087,132.3,132.26,11.19459346]
[1763576171262,29.31555346,132.28,132.22,0.72]
[1763576171475,19.94096,132.28,132.25,11.19459346]
[1763576171952,19.94096,132.28,132.24,11.19459346]
[1763576172158,19.94096,132.28,132.25,11.19459346]
[1763576172539,19.94096,132.28,132.21,40.53202822]
[1763576172540,30.01555346,132.27,132.21,0.2]
[1763576172739,18.12096,132.27,132.24,11.19459346]
[1763576173157,7.56086496,132.26,132.24,11.19459346]
[1763576174242,7.56086496,132.26,132.22,0.72]
[1763576174437,7.56086496,132.26,132.24,11.19459346]
[1763576174638,27.16302736,132.26,132.22,0.72]
[1763576174962,7.56086496,132.26,132.24,11.19459346]
[1763576175338,0.7,132.32,132.25,11.91459346]
[1763576175539,18.12096,132.29,132.25,0.72]
[1763576175747,11.19459346,132.29,132.25,11.19459346]
[1763576175948,2.52,132.28,132.21,0.2]
[1763576176152,29.31555346,132.24,132.21,0.2]
[1763576176667,18.12096,132.24,132.21,12.11459346]
[1763576176840,18.12096,132.24,132.21,11.39459346]
[1763576177039,20.98342115,132.22,132.21,1e-08]
[1763576177346,44.26116692,132.22,132.13,0.72]
[1763576177671,29.31555346,132.15,132.11,11.19459346]
[1763576177975,18.12096,132.15,132.11,11.19459346]
[1763576178152,29.31555346,132.15,132.11,11.19459346]
[1763576178339,29.31555346,132.15,132.1,11.19459346]
[1763576178536,18.12096,132.12,132.09,11.29459346]
[1763576178759,29.31555346,132.12,132.09,0.1]
[1763576179043,11.19459346,132.11,132.09,0.1]
[1763576179240,25.6904097,132.11,132.09,0.1]
[1763576179445,36.88500316,132.11,132.09,0.1]
[1763576179842,25.6904097,132.11,132.09,0.1]
[1763576180053,18.12096,132.11,132.09,11.29459346]
[1763576180259,25.68984319,132.12,132.1,11.19459346]
[1763576180452,11.19459346,132.16,132.11,11.19459346]
[1763576180660,18.12096,132.13,132.11,11.19459346]
[1763576180869,18.12096,132.13,132.09,0.1]
[1763576180870,11.19459346,132.12,132.09,0.1]
[1763576181086,1.82,132.11,132.04,0.1]
[1763576181249,29.31555346,132.06,132.04,0.1]
[1763576181455,18.12096,132.06,132.04,0.1]
[1763576181948,29.31555346,132.06,132.04,0.1]
[1763576182150,22.80342115,132.05,132.01,0.2]
[1763576182346,29.31555346,132.02,132.01,0.2]
[1763576182563,31.13555346,132.02,132.01,0.2]
[1763576182779,41.54438115,132.02,132.01,1e-08]
[1763576183087,40.92438115,132.02,132.01,1e-08]
[1763576183264,49.11899105,132.02,132.01,1e-08]
[1763576183477,35.48439759,132.02,132.01,1e-08]
[1763576183771,18.12096,132.02,132.01,1e-08]
[1763576183963,29.31555346,132.02,132.01,1e-08]
[1763576184161,29.72978769,132.02,132.01,1e-08]
[1763576184360,31.13555346,132.02,132.01,1e-08]
[1763576185277,38.71016336,132.02,132.01,1e-08]
[1763576185473,48.49899105,132.02,132.01,1e-08]
[1763576185684,49.11899105,132.02,132.01,1e-08]
[1763576186179,51.11899104,132.02,132.01,1e-08]
[1763576186376,51.11899104,132.02,131.97,0.1]
[1763576186377,27.90978769,131.98,131.97,0.1]
[1763576186575,40.92438115,131.98,131.97,0.1]
[1763576187294,48.50128674,131.98,131.97,0.1]
[1763576187864,13.01459346,131.98,131.97,0.1]
[1763576188090,19.94096,131.98,131.97,0.1]
[1763576188274,31.13555346,131.98,131.97,0.1]
[1763576188478,38.71245905,131.98,131.97,0.1]
[1763576188671,27.51786559,131.98,131.97,0.1]
[1763576188872,38.71245905,131.98,131.97,0.1]
[1763576189482,37.92669328,131.98,131.97,0.1]
[1763576189682,48.50128674,131.98,131.97,0.1]
[1763576189888,49.12128674,131.98,131.97,0.1]
[1763576190959,68.06355071,131.98,131.95,0.2]
[1763576191162,11.19459346,131.96,131.95,0.2]
[1763576191390,20.59264741,131.96,131.95,0.2]
[1763576191600,18.12096,131.97,131.95,0.2]